[Event "*** Titled Tuesday 3|2 Blitz"]
[Site "Chess.com"]
[Date "2015.09.01"]
[Round "2"]
[White "alexsuper1987"]
[Black "Lapitch"]
[Result "0-1"]
[WhiteElo "2128"]
[BlackElo "2461"]
[TimeControl "180+2"]
[EndTime "11:21:05 PDT"]
[Termination "Lapitch won on time"]

1. e4 {[%clk 0:03:01.9]} 1... c5 {[%clk 0:02:59.9]} 2. Nf3 {[%clk 0:03:02.9]}
2... d6 {[%clk 0:03:00.7]} 3. d4 {[%clk 0:03:03.3]} 3... cxd4 {[%clk 0:03:02.6]}
4. Nxd4 {[%clk 0:03:04.2]} 4... Nf6 {[%clk 0:03:04.1]} 5. Nc3 {[%clk 0:03:02.5]}
5... Nc6 {[%clk 0:03:04.8]} 6. Be3 {[%clk 0:03:03]} 6... Ng4 {[%clk 0:03:03.6]}
7. Bc1 {[%clk 0:03:02.9]} 7... Qb6 {[%clk 0:03:01.5]} 8. Bb5 {[%clk 0:03:03.5]}
8... Bd7 {[%clk 0:03:00.1]} 9. Bxc6 {[%clk 0:03:03.9]} 9... bxc6 {[%clk
0:03:02]} 10. O-O {[%clk 0:03:05]} 10... g6 {[%clk 0:03:01.7]} 11. h3 {[%clk
0:03:01.9]} 11... Bg7 {[%clk 0:03:02.7]} 12. Nb3 {[%clk 0:02:39.9]} 12... Ne5
{[%clk 0:03:02]} 13. Be3 {[%clk 0:02:18.9]} 13... Qb7 {[%clk 0:02:36.8]} 14. Qe2
{[%clk 0:01:59.3]} 14... Be6 {[%clk 0:02:32.6]} 15. Rfd1 {[%clk 0:01:45.2]}
15... c5 {[%clk 0:02:32.5]} 16. Nd5 {[%clk 0:01:41.1]} 16... O-O {[%clk
0:02:31]} 17. f4 {[%clk 0:01:33.4]} 17... Nc6 {[%clk 0:02:31.5]} 18. c3 {[%clk
0:01:28.4]} 18... a5 {[%clk 0:02:16.2]} 19. Rab1 {[%clk 0:01:11]} 19... Rab8
{[%clk 0:02:11.9]} 20. Nd2 {[%clk 0:01:10.9]} 20... Rfe8 {[%clk 0:02:06.1]} 21.
Nf3 {[%clk 0:01:03.7]} 21... a4 {[%clk 0:02:03.8]} 22. Ng5 {[%clk 0:01:02.3]}
22... Bd7 {[%clk 0:02:03.5]} 23. f5 {[%clk 0:00:52.3]} 23... Ne5 {[%clk
0:02:01.1]} 24. Bf4 {[%clk 0:00:44.3]} 24... Bb5 {[%clk 0:01:49.3]} 25. Qf2
{[%clk 0:00:35.7]} 25... Nd3 {[%clk 0:01:26.2]} 26. Qh4 {[%clk 0:00:35.8]} 26...
h6 {[%clk 0:01:25.5]} 27. Nxf7 {[%clk 0:00:27.2]} 27... Kxf7 {[%clk 0:01:25.9]}
28. fxg6+ {[%clk 0:00:19.8]} 28... Kxg6 {[%clk 0:01:27.8]} 29. Rf1 {[%clk
0:00:10.7]} 29... e6 {[%clk 0:01:26.2]} 30. Qg4+ {[%clk 0:00:11.6]} 30... Kh7
{[%clk 0:01:26.9]} 31. Bxh6 {[%clk 0:00:12.1]} 31... exd5 {[%clk 0:01:27]} 32.
Qf5+ {[%clk 0:00:10.8]} 32... Kh8 {[%clk 0:01:27.2]} 33. Qh5 {[%clk 0:00:11.2]}
33... Kg8 {[%clk 0:01:22.4]} 34. Rf5 {[%clk 0:00:09.9]} 34... Re5 {[%clk
0:01:18.5]} 35. Rbf1 {[%clk 0:00:10.2]} 35... Bxh6 {[%clk 0:01:14.6]} 36. Qxh6
{[%clk 0:00:12.1]} 36... Qg7 {[%clk 0:01:15]} 37. Qxd6 {[%clk 0:00:10.9]} 37...
Rbe8 {[%clk 0:01:09.4]} 38. Rxe5 {[%clk 0:00:08.4]} 38... Nxe5 {[%clk
0:01:11.3]} 39. Qxd5+ {[%clk 0:00:07.6]} 39... Kh8 {[%clk 0:01:12.3]} 40. Rf5
{[%clk 0:00:06.3]} 40... Be2 {[%clk 0:01:10.6]} 41. g4 {[%clk 0:00:06.9]} 41...
Nxg4 {[%clk 0:00:55.4]} 42. hxg4 {[%clk 0:00:07.1]} 42... Bxg4 {[%clk
0:00:57.2]} 43. Rg5 {[%clk 0:00:06.1]} 43... Be6 {[%clk 0:00:51.4]} 0-1

[Event "*** Titled Tuesday 3|2 Blitz"]
[Site "Chess.com"]
[Date "2015.09.01"]
[Round "2"]
[White "AlexanderL"]
[Black "nightmaresknight"]
[Result "1-0"]
[WhiteElo "2535"]
[BlackElo "2317"]
[TimeControl "180+2"]
[EndTime "11:21:12 PDT"]
[Termination "AlexanderL won by resignation"]

1. d4 {[%clk 0:03:01.9]} 1... d5 {[%clk 0:02:59.4]} 2. c4 {[%clk 0:03:02.4]}
2... dxc4 {[%clk 0:02:56]} 3. e3 {[%clk 0:03:00.6]} 3... Nf6 {[%clk 0:02:55.9]}
4. Bxc4 {[%clk 0:03:00.9]} 4... e6 {[%clk 0:02:56.3]} 5. Nf3 {[%clk 0:03:01.3]}
5... c5 {[%clk 0:02:57]} 6. O-O {[%clk 0:03:02.2]} 6... a6 {[%clk 0:02:58]} 7.
Bb3 {[%clk 0:03:00.7]} 7... b5 {[%clk 0:02:58.3]} 8. Qe2 {[%clk 0:03:00.7]} 8...
Bb7 {[%clk 0:02:58.4]} 9. Rd1 {[%clk 0:03:01.1]} 9... Nbd7 {[%clk 0:02:56.5]}
10. Nc3 {[%clk 0:02:58.7]} 10... Qb8 {[%clk 0:02:56.9]} 11. d5 {[%clk
0:02:49.9]} 11... exd5 {[%clk 0:02:56.1]} 12. Nxd5 {[%clk 0:02:51.1]} 12... Nxd5
{[%clk 0:02:56.6]} 13. Bxd5 {[%clk 0:02:51.8]} 13... Bxd5 {[%clk 0:02:57.6]} 14.
Rxd5 {[%clk 0:02:52.4]} 14... Qb7 {[%clk 0:02:56.4]} 15. e4 {[%clk 0:02:22.7]}
15... Be7 {[%clk 0:02:56.7]} 16. Bg5 {[%clk 0:02:10.2]} 16... f6 {[%clk
0:02:54.1]} 17. Bf4 {[%clk 0:02:07.4]} 17... O-O {[%clk 0:02:54.6]} 18. Rd2
{[%clk 0:01:19.8]} 18... Rfe8 {[%clk 0:02:48.4]} 19. Rad1 {[%clk 0:01:19.2]}
19... Nb6 {[%clk 0:02:47.4]} 20. b3 {[%clk 0:00:58.7]} 20... Rad8 {[%clk
0:02:06.1]} 21. e5 {[%clk 0:00:51.4]} 21... Rxd2 {[%clk 0:01:50.8]} 22. Rxd2
{[%clk 0:00:49.1]} 22... Bf8 {[%clk 0:01:39.6]} 23. Qd1 {[%clk 0:00:50.2]} 23...
Qe4 {[%clk 0:00:56.7]} 24. Bg3 {[%clk 0:00:42.3]} 24... fxe5 {[%clk 0:00:55.2]}
25. h3 {[%clk 0:00:31.6]} 25... c4 {[%clk 0:00:33.5]} 26. Rd8 {[%clk 0:00:32.2]}
26... Qc6 {[%clk 0:00:13.8]} 27. Nxe5 {[%clk 0:00:29.2]} 27... Rxd8 {[%clk
0:00:14.1]} 28. Qxd8 {[%clk 0:00:29.1]} 28... Qe6 {[%clk 0:00:15.5]} 29. Bf4
{[%clk 0:00:21.8]} 29... cxb3 {[%clk 0:00:15.8]} 30. axb3 {[%clk 0:00:22.2]}
30... Nd5 {[%clk 0:00:16.9]} 31. Nd7 {[%clk 0:00:23.3]} 31... Qf5 {[%clk
0:00:10.2]} 32. Bd6 {[%clk 0:00:20.4]} 32... h6 {[%clk 0:00:06]} 33. Nxf8 {[%clk
0:00:19.2]} 33... Qb1+ {[%clk 0:00:04.9]} 34. Kh2 {[%clk 0:00:20]} 34... Qf5
{[%clk 0:00:05.9]} 35. f4 {[%clk 0:00:17.1]} 35... Nf6 {[%clk 0:00:05.9]} 36.
Nd7+ {[%clk 0:00:15.8]} 36... Kh7 {[%clk 0:00:05.8]} 37. Nxf6+ {[%clk 0:00:17]}
37... gxf6 {[%clk 0:00:07.1]} 38. Qe7+ {[%clk 0:00:16.6]} 38... Kg6 {[%clk
0:00:08.3]} 39. Qe8+ {[%clk 0:00:16.9]} 39... Kg7 {[%clk 0:00:09.2]} 40. Qf8+
{[%clk 0:00:17.7]} 40... Kg6 {[%clk 0:00:10.4]} 41. Qg8+ {[%clk 0:00:18.7]} 1-0

[Event "*** Titled Tuesday 3|2 Blitz"]
[Site "Chess.com"]
[Date "2015.09.01"]
[Round "2"]
[White "Fh2411"]
[Black "MMSANCHEZ"]
[Result "1/2-1/2"]
[WhiteElo "2191"]
[BlackElo "2280"]
[TimeControl "180+2"]
[EndTime "11:21:27 PDT"]
[Termination "Game drawn by repetition"]

1. e4 {[%clk 0:03:01.9]} 1... d5 {[%clk 0:03:00.2]} 2. exd5 {[%clk 0:03:02.2]}
2... Qxd5 {[%clk 0:03:02.1]} 3. Nc3 {[%clk 0:03:03.3]} 3... Qd6 {[%clk
0:03:03.2]} 4. d4 {[%clk 0:03:04.2]} 4... Nf6 {[%clk 0:03:04.2]} 5. Nf3 {[%clk
0:03:01.7]} 5... c6 {[%clk 0:03:05.3]} 6. h3 {[%clk 0:02:55.2]} 6... Bf5 {[%clk
0:03:04.5]} 7. Bc4 {[%clk 0:02:55.7]} 7... Nbd7 {[%clk 0:03:03.7]} 8. O-O {[%clk
0:02:55.8]} 8... e6 {[%clk 0:03:04.8]} 9. Bb3 {[%clk 0:02:53]} 9... Qc7 {[%clk
0:03:05.7]} 10. Re1 {[%clk 0:02:50.2]} 10... Bd6 {[%clk 0:03:06.6]} 11. d5
{[%clk 0:02:45.2]} 11... cxd5 {[%clk 0:03:04.6]} 12. Nd4 {[%clk 0:02:16.4]}
12... O-O {[%clk 0:02:53.8]} 13. Nxf5 {[%clk 0:02:15.5]} 13... exf5 {[%clk
0:02:55]} 14. Nxd5 {[%clk 0:02:14.9]} 14... Nxd5 {[%clk 0:02:56.1]} 15. Qxd5
{[%clk 0:02:14.8]} 15... Ne5 {[%clk 0:02:44.5]} 16. Bd2 {[%clk 0:02:06.9]} 16...
Rad8 {[%clk 0:02:42.1]} 17. Bc3 {[%clk 0:02:05.3]} 17... Rfe8 {[%clk 0:02:21.2]}
18. Rad1 {[%clk 0:01:40.1]} 18... g6 {[%clk 0:01:42.1]} 19. Kh1 {[%clk
0:00:51.9]} 19... f4 {[%clk 0:01:41.5]} 20. f3 {[%clk 0:00:42.5]} 20... Qe7
{[%clk 0:01:19]} 21. Qe4 {[%clk 0:00:33]} 21... Nc6 {[%clk 0:00:56.7]} 22. Qc4
{[%clk 0:00:30.5]} 22... Be5 {[%clk 0:00:38.5]} 23. Rxd8 {[%clk 0:00:27]} 23...
Rxd8 {[%clk 0:00:37.2]} 24. Bxe5 {[%clk 0:00:12.7]} 24... Nxe5 {[%clk
0:00:37.6]} 25. Qxf4 {[%clk 0:00:14.2]} 25... Re8 {[%clk 0:00:21.6]} 26. Qe4
{[%clk 0:00:14.2]} 26... Kg7 {[%clk 0:00:20.6]} 27. f4 {[%clk 0:00:14]} 27...
Nc6 {[%clk 0:00:21.6]} 28. Qxe7 {[%clk 0:00:15]} 28... Rxe7 {[%clk 0:00:23.1]}
29. Rxe7 {[%clk 0:00:15.4]} 29... Nxe7 {[%clk 0:00:25]} 30. Kg1 {[%clk
0:00:16.3]} 30... Kf6 {[%clk 0:00:26.9]} 31. Kf2 {[%clk 0:00:17.1]} 31... g5
{[%clk 0:00:28.4]} 32. Kf3 {[%clk 0:00:17.5]} 32... gxf4 {[%clk 0:00:29.5]} 33.
Kxf4 {[%clk 0:00:19.4]} 33... b6 {[%clk 0:00:30.5]} 34. g4 {[%clk 0:00:19]}
34... Ng6+ {[%clk 0:00:31]} 35. Kg3 {[%clk 0:00:19.9]} 35... Ne5 {[%clk
0:00:31]} 36. Bd5 {[%clk 0:00:21.3]} 36... Nd7 {[%clk 0:00:31.6]} 37. Kf4 {[%clk
0:00:21.6]} 37... Nc5 {[%clk 0:00:32.8]} 38. h4 {[%clk 0:00:22.5]} 38... h6
{[%clk 0:00:33.4]} 39. g5+ {[%clk 0:00:23.6]} 39... hxg5+ {[%clk 0:00:34]} 40.
hxg5+ {[%clk 0:00:25.5]} 40... Kg6 {[%clk 0:00:35.4]} 41. b4 {[%clk 0:00:18.5]}
41... Nd7 {[%clk 0:00:35.7]} 42. Be4+ {[%clk 0:00:19.6]} 42... Kg7 {[%clk
0:00:36.4]} 43. c4 {[%clk 0:00:21.2]} 43... f6 {[%clk 0:00:34.9]} 44. g6 {[%clk
0:00:21.5]} 44... Nf8 {[%clk 0:00:35.4]} 45. c5 {[%clk 0:00:21.8]} 45... bxc5
{[%clk 0:00:36.7]} 46. bxc5 {[%clk 0:00:23.7]} 46... Ne6+ {[%clk 0:00:38.6]} 47.
Kf5 {[%clk 0:00:22.2]} 47... Nxc5 {[%clk 0:00:40.2]} 48. Bc2 {[%clk 0:00:23.1]}
48... Nd7 {[%clk 0:00:40.6]} 49. Kg4 {[%clk 0:00:19.3]} 49... Ne5+ {[%clk
0:00:41.6]} 50. Kh5 {[%clk 0:00:21]} 50... Nc4 {[%clk 0:00:41.4]} 51. Bf5 {[%clk
0:00:20.9]} 51... Ne5 {[%clk 0:00:41.8]} 52. Be4 {[%clk 0:00:21.6]} 52... Nc4
{[%clk 0:00:42]} 53. Bf5 {[%clk 0:00:22.7]} 53... Ne5 {[%clk 0:00:43.3]} 54. Be4
{[%clk 0:00:23.7]} 54... Nc4 {[%clk 0:00:44.5]} 55. Bf5 {[%clk 0:00:25]} 55...
Ne5 {[%clk 0:00:45.2]} 1/2-1/2

[Event "*** Titled Tuesday 3|2 Blitz"]
[Site "Chess.com"]
[Date "2015.09.01"]
[Round "2"]
[White "ChessTrener"]
[Black "Aygehovit1992"]
[Result "1/2-1/2"]
[WhiteElo "2524"]
[BlackElo "2343"]
[TimeControl "180+2"]
[EndTime "11:21:50 PDT"]
[Termination "Game drawn - insufficient material"]

1. e4 {[%clk 0:03:01.9]} 1... c5 {[%clk 0:03:00.7]} 2. Ne2 {[%clk 0:02:58.6]}
2... d6 {[%clk 0:02:59.5]} 3. g3 {[%clk 0:02:59.8]} 3... Nc6 {[%clk 0:03:00.3]}
4. Bg2 {[%clk 0:02:52.8]} 4... g6 {[%clk 0:03:01.7]} 5. c3 {[%clk 0:02:53.7]}
5... Bg7 {[%clk 0:03:03]} 6. d4 {[%clk 0:02:55.2]} 6... e5 {[%clk 0:03:01.6]} 7.
dxc5 {[%clk 0:02:54.1]} 7... dxc5 {[%clk 0:03:02.7]} 8. Qxd8+ {[%clk 0:02:55.7]}
8... Nxd8 {[%clk 0:03:03]} 9. Be3 {[%clk 0:02:57.6]} 9... b6 {[%clk 0:03:02.9]}
10. a4 {[%clk 0:02:55.8]} 10... Nc6 {[%clk 0:03:00.5]} 11. Na3 {[%clk
0:02:55.8]} 11... Be6 {[%clk 0:02:55.4]} 12. f4 {[%clk 0:02:53.4]} 12... Nge7
{[%clk 0:02:54.8]} 13. Nb5 {[%clk 0:02:49.5]} 13... O-O-O {[%clk 0:02:55.5]} 14.
O-O {[%clk 0:02:46.8]} 14... Bc4 {[%clk 0:02:53.1]} 15. Kf2 {[%clk 0:02:47.7]}
15... h5 {[%clk 0:02:25.9]} 16. Rfd1 {[%clk 0:02:23.3]} 16... a6 {[%clk
0:02:25.9]} 17. Nd6+ {[%clk 0:02:23.3]} 17... Rxd6 {[%clk 0:02:27]} 18. Rxd6
{[%clk 0:02:24.3]} 18... Kc7 {[%clk 0:02:28]} 19. Rad1 {[%clk 0:02:17.5]} 19...
h4 {[%clk 0:02:25.2]} 20. Rd7+ {[%clk 0:02:17.9]} 20... Kc8 {[%clk 0:02:24.1]}
21. a5 {[%clk 0:02:14.8]} 21... Be6 {[%clk 0:02:11.6]} 22. Rxe7 {[%clk
0:02:09.1]} 22... Nxe7 {[%clk 0:02:12.1]} 23. axb6 {[%clk 0:02:11]} 23... c4
{[%clk 0:01:55.6]} 24. fxe5 {[%clk 0:02:05.7]} 24... Bxe5 {[%clk 0:01:56]} 25.
Nd4 {[%clk 0:02:05.3]} 25... Bg4 {[%clk 0:01:56.7]} 26. Ra1 {[%clk 0:02:03.5]}
26... Kb7 {[%clk 0:01:56.4]} 27. Ra4 {[%clk 0:01:59.4]} 27... hxg3+ {[%clk
0:01:30.3]} 28. hxg3 {[%clk 0:01:59]} 28... Nc8 {[%clk 0:00:54.8]} 29. Nf3
{[%clk 0:01:54.4]} 29... Bxf3 {[%clk 0:00:54.9]} 30. Bxf3 {[%clk 0:01:53]} 30...
Nd6 {[%clk 0:00:55.9]} 31. Kg2 {[%clk 0:01:33.7]} 31... Rd8 {[%clk 0:00:52.1]}
32. Ra5 {[%clk 0:01:31.8]} 32... f6 {[%clk 0:00:52.8]} 33. Rd5 {[%clk
0:01:28.4]} 33... Nf7 {[%clk 0:00:45.2]} 34. Rxd8 {[%clk 0:01:25]} 34... Nxd8
{[%clk 0:00:46]} 35. Be2 {[%clk 0:01:26.9]} 35... Nf7 {[%clk 0:00:23]} 36. Bxc4
{[%clk 0:01:27.7]} 36... Nd6 {[%clk 0:00:24.4]} 37. Bd5+ {[%clk 0:01:29]} 37...
Kb8 {[%clk 0:00:25.9]} 38. c4 {[%clk 0:01:30.4]} 38... Bxb2 {[%clk 0:00:23.6]}
39. c5 {[%clk 0:01:30.8]} 39... Nb5 {[%clk 0:00:23]} 40. c6 {[%clk 0:01:30.4]}
40... Be5 {[%clk 0:00:18.7]} 41. Bc4 {[%clk 0:01:28.1]} 41... Bd6 {[%clk
0:00:11.8]} 42. c7+ {[%clk 0:01:16.4]} 42... Bxc7 {[%clk 0:00:05.5]} 43. bxc7+
{[%clk 0:01:15.8]} 43... Nxc7 {[%clk 0:00:06]} 44. Bf4 {[%clk 0:01:17]} 44... a5
{[%clk 0:00:06.7]} 45. Kf3 {[%clk 0:01:11.5]} 45... Kb7 {[%clk 0:00:07.8]} 46.
Bxc7 {[%clk 0:01:10.5]} 46... Kxc7 {[%clk 0:00:08.8]} 47. Ke3 {[%clk 0:01:11.6]}
47... Kd6 {[%clk 0:00:10.2]} 48. Kd4 {[%clk 0:01:12.9]} 48... Ke7 {[%clk
0:00:10.9]} 49. Kd5 {[%clk 0:01:11.7]} 49... a4 {[%clk 0:00:10]} 50. g4 {[%clk
0:01:12.8]} 50... a3 {[%clk 0:00:10.6]} 51. Ba2 {[%clk 0:01:14]} 51... Kd7
{[%clk 0:00:11.1]} 52. Bb3 {[%clk 0:01:13.8]} 52... Ke7 {[%clk 0:00:12.3]} 53.
Kc6 {[%clk 0:01:15]} 53... f5 {[%clk 0:00:10.3]} 54. Kd5 {[%clk 0:01:06.5]}
54... fxg4 {[%clk 0:00:10.9]} 55. Kd4 {[%clk 0:01:07.8]} 55... g3 {[%clk
0:00:10.3]} 56. Ke3 {[%clk 0:01:08.6]} 56... Kd6 {[%clk 0:00:10.4]} 57. Kf3
{[%clk 0:01:07.3]} 57... Ke5 {[%clk 0:00:10.8]} 58. Bd5 {[%clk 0:01:07.4]} 58...
g2 {[%clk 0:00:11.8]} 59. Kxg2 {[%clk 0:01:08.6]} 59... a2 {[%clk 0:00:13.1]}
60. Bxa2 {[%clk 0:01:10.5]} 60... Kxe4 {[%clk 0:00:14.2]} 61. Bb1+ {[%clk
0:01:12.4]} 61... Ke3 {[%clk 0:00:15.1]} 62. Bxg6 {[%clk 0:01:14.3]} 1/2-1/2

[Event "*** Titled Tuesday 3|2 Blitz"]
[Site "Chess.com"]
[Date "2015.09.01"]
[Round "2"]
[White "Badouuu"]
[Black "AnastasiaProtopopova"]
[Result "1-0"]
[WhiteElo "1855"]
[BlackElo "1791"]
[TimeControl "180+2"]
[EndTime "11:22:01 PDT"]
[Termination "Badouuu won by resignation"]

1. d4 {[%clk 0:03:01.9]} 1... Nf6 {[%clk 0:02:37.3]} 2. Nf3 {[%clk 0:03:03.8]}
2... e6 {[%clk 0:02:38.3]} 3. g3 {[%clk 0:03:02.9]} 3... b5 {[%clk 0:02:33.3]}
4. Bg2 {[%clk 0:03:02.4]} 4... Bb7 {[%clk 0:02:33.8]} 5. O-O {[%clk 0:03:03]}
5... d5 {[%clk 0:02:31.8]} 6. a4 {[%clk 0:03:01.4]} 6... b4 {[%clk 0:02:31.5]}
7. Ne5 {[%clk 0:02:57.7]} 7... Nbd7 {[%clk 0:02:29.5]} 8. c4 {[%clk 0:02:58]}
8... Bd6 {[%clk 0:02:22.7]} 9. Nxd7 {[%clk 0:02:49.9]} 9... Qxd7 {[%clk
0:02:21.9]} 10. c5 {[%clk 0:02:50.9]} 10... Be7 {[%clk 0:02:22.6]} 11. a5 {[%clk
0:02:47]} 11... Ba6 {[%clk 0:02:15]} 12. Bd2 {[%clk 0:02:26.6]} 12... Rb8 {[%clk
0:02:12.8]} 13. Ra4 {[%clk 0:02:26.5]} 13... O-O {[%clk 0:02:07.8]} 14. Rxb4
{[%clk 0:02:15.7]} 14... Rxb4 {[%clk 0:02:07.6]} 15. Bxb4 {[%clk 0:02:17.6]}
15... Qb5 {[%clk 0:02:08.8]} 16. Bc3 {[%clk 0:02:01.3]} 16... Qxe2 {[%clk
0:02:04.9]} 17. Qxe2 {[%clk 0:01:55.3]} 17... Bxe2 {[%clk 0:02:05.6]} 18. Re1
{[%clk 0:01:55.6]} 18... Ba6 {[%clk 0:02:02]} 19. b4 {[%clk 0:01:48.9]} 19... c6
{[%clk 0:01:53]} 20. Na3 {[%clk 0:01:46.3]} 20... Bd8 {[%clk 0:01:26.6]} 21. Rb1
{[%clk 0:01:43.3]} 21... Bc7 {[%clk 0:01:22.8]} 22. b5 {[%clk 0:01:22.3]} 22...
cxb5 {[%clk 0:01:20]} 23. Nxb5 {[%clk 0:01:24.2]} 23... Rb8 {[%clk 0:01:14]} 24.
Bf1 {[%clk 0:01:14.9]} 24... Ne4 {[%clk 0:01:12.4]} 25. Be1 {[%clk 0:01:11.5]}
25... Bxb5 {[%clk 0:00:38.8]} 26. Rxb5 {[%clk 0:01:05.9]} 26... Rxb5 {[%clk
0:00:38.5]} 27. Bxb5 {[%clk 0:01:06.1]} 27... e5 {[%clk 0:00:30.4]} 28. dxe5
{[%clk 0:01:03.6]} 28... Bxe5 {[%clk 0:00:30.5]} 29. c6 {[%clk 0:01:04.1]} 29...
Bc7 {[%clk 0:00:27.2]} 30. f3 {[%clk 0:00:53.1]} 30... Nd6 {[%clk 0:00:26.5]}
31. Bd3 {[%clk 0:00:47.8]} 31... Kf8 {[%clk 0:00:14.3]} 32. Kf2 {[%clk
0:00:47.9]} 32... g6 {[%clk 0:00:12.7]} 33. Ke3 {[%clk 0:00:47.4]} 33... Ke7
{[%clk 0:00:12.9]} 34. Kd4 {[%clk 0:00:48.2]} 34... Ke6 {[%clk 0:00:13.1]} 35.
Kc5 {[%clk 0:00:42.8]} 35... Nf5 {[%clk 0:00:13.4]} 36. Bxf5+ {[%clk 0:00:36.9]}
36... gxf5 {[%clk 0:00:13.4]} 37. Kb5 {[%clk 0:00:37.6]} 37... Ke5 {[%clk
0:00:11.4]} 38. Ka6 {[%clk 0:00:35.5]} 38... d4 {[%clk 0:00:11.3]} 39. Kb7
{[%clk 0:00:34.7]} 39... Bd6 {[%clk 0:00:09]} 40. c7 {[%clk 0:00:24.9]} 40...
Bxc7 {[%clk 0:00:09]} 41. Kxc7 {[%clk 0:00:26.8]} 41... d3 {[%clk 0:00:09.6]}
42. Bc3+ {[%clk 0:00:20.8]} 42... Kd5 {[%clk 0:00:05.6]} 43. Kb7 {[%clk
0:00:22.7]} 43... Kc4 {[%clk 0:00:06.7]} 44. Be1 {[%clk 0:00:22.5]} 44... Kd4
{[%clk 0:00:05.7]} 45. a6 {[%clk 0:00:23.1]} 45... Ke3 {[%clk 0:00:07.2]} 46.
Kxa7 {[%clk 0:00:24.3]} 46... d2 {[%clk 0:00:08.8]} 47. Bxd2+ {[%clk 0:00:25.2]}
47... Kxd2 {[%clk 0:00:10.4]} 48. Kb7 {[%clk 0:00:27.1]} 48... Ke2 {[%clk
0:00:12.1]} 49. a7 {[%clk 0:00:29]} 49... Kxf3 {[%clk 0:00:13.7]} 50. a8=Q
{[%clk 0:00:30.9]} 50... Kg2 {[%clk 0:00:15.2]} 51. Qe8 {[%clk 0:00:30.7]} 51...
Kxh2 {[%clk 0:00:16.5]} 52. Qxf7 {[%clk 0:00:31.8]} 52... Kxg3 {[%clk 0:00:16]}
53. Qxf5 {[%clk 0:00:32.7]} 1-0

[Event "*** Titled Tuesday 3|2 Blitz"]
[Site "Chess.com"]
[Date "2015.09.01"]
[Round "2"]
[White "Tomsel"]
[Black "Schemato"]
[Result "1-0"]
[WhiteElo "2295"]
[BlackElo "2157"]
[TimeControl "180+2"]
[EndTime "11:22:27 PDT"]
[Termination "Tomsel won by resignation"]

1. d4 {[%clk 0:02:39.4]} 1... e6 {[%clk 0:03:00.6]} 2. Bf4 {[%clk 0:02:39.9]}
2... d6 {[%clk 0:02:58.6]} 3. Nf3 {[%clk 0:02:40.1]} 3... f5 {[%clk 0:02:55.9]}
4. Nc3 {[%clk 0:02:39.9]} 4... Nf6 {[%clk 0:02:56.1]} 5. Qd3 {[%clk 0:02:37.5]}
5... d5 {[%clk 0:02:51.5]} 6. Ne5 {[%clk 0:02:28.8]} 6... Be7 {[%clk 0:02:48.8]}
7. h3 {[%clk 0:02:26]} 7... O-O {[%clk 0:02:49]} 8. g4 {[%clk 0:02:25.7]} 8...
Ne4 {[%clk 0:02:33.1]} 9. Bg2 {[%clk 0:02:15.7]} 9... Bh4 {[%clk 0:02:25.7]} 10.
Nxe4 {[%clk 0:01:56.3]} 10... fxe4 {[%clk 0:02:26]} 11. Qe3 {[%clk 0:01:58]}
11... Nd7 {[%clk 0:01:57.7]} 12. Nxd7 {[%clk 0:01:46.1]} 12... Bxd7 {[%clk
0:01:56.6]} 13. O-O {[%clk 0:01:37.2]} 13... Rc8 {[%clk 0:01:38.6]} 14. f3
{[%clk 0:01:34.6]} 14... exf3 {[%clk 0:01:34.5]} 15. Rxf3 {[%clk 0:01:32.3]}
15... Qe7 {[%clk 0:01:12.8]} 16. c3 {[%clk 0:01:06.6]} 16... c6 {[%clk
0:00:47.7]} 17. Raf1 {[%clk 0:01:05.5]} 17... h6 {[%clk 0:00:47.6]} 18. b4
{[%clk 0:00:50.4]} 18... a6 {[%clk 0:00:38.9]} 19. a4 {[%clk 0:00:40.1]} 19...
Rce8 {[%clk 0:00:29.5]} 20. a5 {[%clk 0:00:40.3]} 20... Bf6 {[%clk 0:00:22.9]}
21. Be5 {[%clk 0:00:18.2]} 21... Bxe5 {[%clk 0:00:22.1]} 22. Qxe5 {[%clk
0:00:20.1]} 22... Rxf3 {[%clk 0:00:22.6]} 23. Rxf3 {[%clk 0:00:20.1]} 23... Rf8
{[%clk 0:00:23.5]} 24. Re3 {[%clk 0:00:21.8]} 24... Qf6 {[%clk 0:00:23.2]} 25.
Bf3 {[%clk 0:00:20]} 25... Qxe5 {[%clk 0:00:23]} 26. Rxe5 {[%clk 0:00:21.3]}
26... Rf6 {[%clk 0:00:22.1]} 27. h4 {[%clk 0:00:22]} 27... Kf8 {[%clk
0:00:15.6]} 28. Kg2 {[%clk 0:00:22.8]} 28... Ke7 {[%clk 0:00:15.9]} 29. Kg3
{[%clk 0:00:23.9]} 29... Kd6 {[%clk 0:00:16.9]} 30. g5 {[%clk 0:00:23.5]} 30...
hxg5 {[%clk 0:00:15.8]} 31. hxg5 {[%clk 0:00:24.1]} 31... Rf8 {[%clk 0:00:15.5]}
32. Kg4 {[%clk 0:00:17]} 32... Rh8 {[%clk 0:00:16.2]} 33. Kg3 {[%clk 0:00:18.5]}
33... Be8 {[%clk 0:00:16.7]} 34. Bg4 {[%clk 0:00:19.3]} 34... Bf7 {[%clk
0:00:15.3]} 35. g6 {[%clk 0:00:20.6]} 35... Bg8 {[%clk 0:00:16]} 36. Bh5 {[%clk
0:00:18.6]} 36... Ke7 {[%clk 0:00:16.4]} 37. Kg4 {[%clk 0:00:18]} 37... Kf6
{[%clk 0:00:17.4]} 38. Re3 {[%clk 0:00:19.4]} 38... Rh6 {[%clk 0:00:15.4]} 39.
Rf3+ {[%clk 0:00:20.8]} 39... Ke7 {[%clk 0:00:16.2]} 40. Kg5 {[%clk 0:00:22.7]}
40... Rh8 {[%clk 0:00:16.2]} 41. Re3 {[%clk 0:00:22.9]} 41... Rh6 {[%clk
0:00:16.5]} 42. Rf3 {[%clk 0:00:20.7]} 42... Rh8 {[%clk 0:00:17.5]} 43. Rf1
{[%clk 0:00:21.8]} 43... Rh6 {[%clk 0:00:18.4]} 44. Re1 {[%clk 0:00:22.9]} 44...
Kd6 {[%clk 0:00:17.1]} 45. e4 {[%clk 0:00:23.6]} 45... e5 {[%clk 0:00:16.7]} 46.
dxe5+ {[%clk 0:00:23.7]} 46... Kxe5 {[%clk 0:00:17.4]} 47. exd5+ {[%clk
0:00:25.3]} 47... Kxd5 {[%clk 0:00:16.9]} 48. Re7 {[%clk 0:00:20.4]} 48... Kc4
{[%clk 0:00:17.5]} 49. Rxg7 {[%clk 0:00:21]} 49... Rh8 {[%clk 0:00:18.7]} 50.
Rxb7 {[%clk 0:00:18.9]} 50... Bd5 {[%clk 0:00:19.6]} 51. g7 {[%clk 0:00:19.1]}
51... Ra8 {[%clk 0:00:18.3]} 52. Bf7 {[%clk 0:00:15.8]} 52... Bxf7 {[%clk
0:00:13.9]} 53. Rxf7 {[%clk 0:00:16.4]} 53... Rg8 {[%clk 0:00:13.6]} 54. Kg6
{[%clk 0:00:17.8]} 54... Kxc3 {[%clk 0:00:15]} 55. Rb7 {[%clk 0:00:18]} 55...
Kc4 {[%clk 0:00:14.7]} 56. Kf7 {[%clk 0:00:19.2]} 56... Rc8 {[%clk 0:00:14.2]}
57. g8=Q {[%clk 0:00:19.2]} 57... Rxg8 {[%clk 0:00:09.1]} 58. Kxg8 {[%clk
0:00:20]} 1-0